fUSD/lending_fUSD_20250109
["ID","MTS","AMOUNT","RATE_DAILY","PERIOD"]
[348257239,1736422253964,-503.18362016,0.00010545,2]
[348257240,1736422253975,-500.0,0.00010545,2]
[348257241,1736422253986,-500.0,0.00010545,2]
[348257242,1736422253998,-500.0,0.00010545,2]
[348257243,1736422254009,-500.0,0.00010545,2]
[348257244,1736422254020,-500.0,0.00010545,2]
[348257245,1736422254032,-500.0,0.00010545,2]
[348257246,1736422254043,-500.0,0.00010545,2]
[348257247,1736422254054,-500.0,0.00010545,2]
[348257248,1736422254066,-500.0,0.00010545,2]
[348257249,1736422254077,-500.0,0.00010545,2]
[348257250,1736422254088,-970.74,0.00010545,2]
[348257251,1736422254099,-500.0,0.00010545,2]
[348257252,1736422254110,-500.0,0.00010545,2]
[348257253,1736422254122,-500.0,0.00010545,2]
[348257254,1736422254133,-500.0,0.00010545,2]
[348257255,1736422254143,-500.0,0.00010545,2]
[348257256,1736422254154,-500.0,0.00010545,2]
[348257257,1736422254166,-500.0,0.00010545,2]
[348257258,1736422254177,-500.0,0.00010545,2]
[348257259,1736422254188,-500.0,0.00010545,2]
[348257260,1736422254198,-500.0,0.00010545,2]
[348257261,1736422254209,-500.0,0.00010545,2]
[348257262,1736422254220,-500.0,0.00010545,2]
[348257263,1736422254231,-501.51881691,0.00010545,2]
[348257264,1736422254243,-500.0,0.00010545,2]
[348257265,1736422254254,-500.0,0.00010545,2]
[348257266,1736422254265,-500.0,0.00010545,2]
[348257267,1736422254277,-500.0,0.00010545,2]
[348257268,1736422254289,-500.0,0.00010545,2]
[348257269,1736422254300,-636.81,0.00010545,2]
[348257270,1736422254312,-500.0,0.00010545,2]
[348257271,1736422254324,-501.82904628,0.00010545,2]
[348257272,1736422254553,-500.0,0.00010545,2]
[348257273,1736422254579,-500.0,0.00010545,2]
[348257274,1736422254592,-500.0,0.00010545,2]
[348257275,1736422254602,-500.0,0.00010545,2]
[348257276,1736422254611,-500.0,0.00010545,2]
[348257277,1736422254621,-500.0,0.00010545,2]
[348257278,1736422254631,-500.0,0.00010545,2]
[348257279,1736422254640,-500.0,0.00010545,2]
[348257280,1736422254651,-500.0,0.00010545,2]
[348257281,1736422254663,-500.0,0.00010545,2]
[348257282,1736422254671,-500.0,0.00010545,2]
[348257283,1736422254681,-500.0,0.00010545,2]
[348257284,1736422254690,-500.0,0.00010545,2]
[348257285,1736422254699,-500.0,0.00010545,2]
[348257286,1736422254709,-500.0,0.00010545,2]
[348257287,1736422254719,-500.0,0.00010545,2]
[348257288,1736422254731,-500.0,0.00010545,2]
[348257289,1736422254740,-501.29610897,0.00010545,2]
[348257290,1736422254754,-500.0,0.00010545,2]
[348257291,1736422254763,-500.0,0.00010545,2]
[348257292,1736422254773,-500.0,0.00010545,2]
[348257293,1736422254784,-500.0,0.00010545,2]
[348257294,1736422254796,-500.0,0.00010545,2]
[348257295,1736422254807,-500.0,0.00010545,2]
[348257296,1736422254816,-500.0,0.00010545,2]
[348257297,1736422254827,-500.0,0.00010545,2]
[348257298,1736422254837,-500.0,0.00010545,2]
[348257299,1736422254848,-500.0,0.00010545,2]
[348257300,1736422254858,-1485.71,0.00010545,2]
[348257301,1736422254868,-500.0,0.00010545,2]
[348257302,1736422254878,-500.0,0.00010545,2]
[348257303,1736422254887,-501.8110684,0.00010545,2]
[348257304,1736422254897,-500.0,0.00010545,2]
[348257305,1736422254906,-500.0,0.00010545,2]
[348257306,1736422254915,-500.0,0.00010545,2]
[348257307,1736422254925,-500.0,0.00010545,2]
[348257308,1736422254935,-500.0,0.00010545,2]
[348257309,1736422254944,-500.0,0.00010545,2]
[348257310,1736422254953,-500.0,0.00010545,2]
[348257311,1736422254963,-500.0,0.00010545,2]
[348257312,1736422254972,-500.0,0.00010545,2]
[348257313,1736422254982,-535.57545402,0.00010545,2]
[348257314,1736422254991,-500.0,0.00010545,2]
[348257315,1736422255002,-500.0,0.00010545,2]
[348257316,1736422255012,-542.44,0.00010545,2]
[348257317,1736422255021,-500.0,0.00010545,2]
[348257318,1736422255031,-500.0,0.00010545,2]
[348257319,1736422255040,-500.0,0.00010545,2]
[348257320,1736422255050,-500.0,0.00010545,2]
[348257321,1736422255060,-500.0,0.00010545,2]
[348257322,1736422255070,-500.0,0.00010545,2]
[348257323,1736422255080,-500.0,0.00010545,2]
[348257324,1736422255089,-500.0,0.00010545,2]
[348257325,1736422255099,-500.0,0.00010545,2]
[348257326,1736422255108,-500.0,0.00010545,2]
[348257327,1736422255117,-500.0,0.00010545,2]
[348257328,1736422255126,-500.0,0.00010546,2]
[348257329,1736422255136,-500.0,0.00010546,2]
[348257330,1736422255146,-500.0,0.00010546,2]
[348257331,1736422255156,-500.0,0.00010546,2]
[348257332,1736422255166,-500.0,0.00010546,2]
[348257333,1736422255175,-500.0,0.00010546,2]
[348257334,1736422255185,-836.81,0.00010546,2]
[348257335,1736422255195,-500.0,0.00010546,2]
[348257336,1736422255206,-655.07,0.00010546,2]
[348257337,1736422255215,-535.14,0.00010546,2]
[348257338,1736422255225,-500.0,0.00010546,2]
[348257339,1736422255235,-500.0,0.00010546,2]
[348257340,1736422255244,-500.0,0.00010546,2]
[348257341,1736422255254,-500.0,0.00010546,2]
[348257342,1736422255263,-552.3,0.00010546,2]
[348257343,1736422255272,-505.21,0.00010546,2]
[348257344,1736422255282,-633.35,0.00010546,2]
[348257345,1736422255292,-873.83,0.00010546,2]
[348257346,1736422255302,-3286.17,0.00010546,2]
[348257347,1736422255311,-500.0,0.00010546,2]
[348257348,1736422255320,-1187.0,0.00010546,2]
[348257349,1736422255330,-712.67,0.0001065,2]
[348257350,1736422255340,-531.05,0.00010818,2]
[348257351,1736422255349,-500.0,0.00010818,2]
[348257352,1736422255359,-500.0,0.00010818,2]
[348257353,1736422255368,-321.48100666,0.00010818,2]
[348257354,1736422255378,-500.0,0.00010818,2]
[348257355,1736422255388,-473.81233587,0.00010818,2]
[348257356,1736422255397,-500.0,0.00010818,2]
[348257357,1736422255407,-500.0,0.00010818,2]
[348257358,1736422255416,-500.0,0.00010818,2]
[348257359,1736422255426,-500.0,0.00010818,2]
[348257360,1736422255436,-500.0,0.00010818,2]
[348257361,1736422255445,-500.0,0.00010818,2]
[348257362,1736422255455,-500.0,0.00010818,2]
[348257363,1736422255464,-500.0,0.00010818,2]
[348257364,1736422255474,-500.0,0.00010818,2]
[348257365,1736422255483,-500.0,0.00010818,2]
[348257366,1736422255493,-500.0,0.00010818,2]
[348257367,1736422255503,-586.74,0.00010818,2]
[348257368,1736422255512,-500.0,0.00010818,2]
[348257369,1736422255521,-500.0,0.00010818,2]
[348257370,1736422255530,-530.55,0.00010818,2]
[348257371,1736422255540,-500.0,0.00010818,2]
[348257372,1736422255549,-500.0,0.00010818,2]
[348257373,1736422255559,-500.0,0.00010818,2]
[348257374,1736422255568,-500.0,0.00010818,2]
[348257375,1736422255577,-500.0,0.00010818,2]
[348257376,1736422255589,-500.0,0.00010818,2]
[348257377,1736422255599,-500.0,0.00010818,2]
[348257378,1736422255609,-500.0,0.00010818,2]
[348257379,1736422255618,-537.07,0.00010818,2]
[348257380,1736422255629,-986.41,0.00010818,2]
[348257381,1736422255638,-500.0,0.00010818,2]
[348257382,1736422255648,-500.0,0.00010818,2]
[348257383,1736422255658,-709.68,0.00010818,2]
[348257384,1736422255668,-751.58,0.00010818,2]
[348257385,1736422255677,-892.24,0.00010818,2]
[348257386,1736422255687,-500.0,0.00010818,2]
[348257387,1736422255696,-500.0,0.00010818,2]
[348257388,1736422255706,-1592.04,0.00010818,2]
[348257389,1736422255716,-1610.5,0.00010818,2]
[348257390,1736422255725,-545.79329969,0.00010818,2]
[348257391,1736422255735,-500.0,0.00010818,2]
[348257392,1736422255744,-500.0,0.00010818,2]
[348257393,1736422255754,-617.618837,0.00010818,2]
[348257394,1736422255763,-649.73,0.00010818,2]
[348257395,1736422255773,-712.58,0.00010818,2]
[348257396,1736422255783,-572.47,0.00010818,2]
[348257397,1736422255794,-607.33,0.00010818,2]
[348257398,1736422255803,-514.0,0.00010818,2]
[348257399,1736422255813,-500.0,0.00010818,2]
[348257400,1736422255823,-1325.68,0.00010818,2]
[348257401,1736422255833,-629.280853,0.00010818,2]
[348257402,1736422255843,-500.0,0.00010818,2]
[348257403,1736422255852,-391.24486993,0.00010818,2]
[348257404,1736422255862,-500.0,0.00010818,2]
[348257405,1736422255872,-500.0,0.00010818,2]
[348257406,1736422255882,-500.0,0.00010818,2]
[348257407,1736422255892,-1436.3,0.00010818,2]
[348257408,1736422255902,-898.53,0.00010818,2]
[348257409,1736422255911,-500.0,0.00010818,2]
[348257410,1736422255921,-500.0,0.00010818,2]
[348257411,1736422255930,-810.39,0.00010818,2]
[348257412,1736422255939,-500.0,0.00010818,2]
[348257413,1736422255949,-500.0,0.00010818,2]
[348257414,1736422255959,-500.0,0.00010818,2]
[348257415,1736422255968,-500.0,0.00010818,2]
[348257416,1736422255977,-739.26,0.00010818,2]
[348257417,1736422255987,-526.26,0.00010818,2]
[348257418,1736422255996,-354.09,0.00010818,2]
[348257419,1736422256006,-719.73,0.00010818,2]
[348257420,1736422256015,-1350.5,0.00010818,2]
[348257421,1736422256025,-500.0,0.00010818,2]
[348257422,1736422256034,-500.0,0.00010818,2]
[348257423,1736422256044,-500.0,0.00010818,2]
[348257424,1736422256054,-500.0,0.00010818,2]
[348257425,1736422256064,-1657.26,0.00010818,2]
[348257426,1736422256073,-1048.08,0.00010818,2]
[348257427,1736422256083,-566.65,0.00010818,2]
[348257428,1736422256093,-500.0,0.00010818,2]
[348257429,1736422256103,-500.0,0.00010818,2]
[348257430,1736422256112,-1007.65,0.00010818,2]
[348257431,1736422256122,-3338.64,0.00010818,2]
[348257432,1736422256132,-500.0,0.00010819,2]
[348257433,1736422256141,-500.0,0.00010819,2]
[348257434,1736422256151,-500.0,0.00010819,2]
[348257435,1736422256160,-500.0,0.00010819,2]
[348257436,1736422256170,-500.0,0.00010819,2]
[348257437,1736422256179,-500.0,0.00010819,2]
[348257438,1736422256189,-500.0,0.00010819,2]
[348257439,1736422256198,-625.69,0.00010819,2]
[348257440,1736422256207,-500.0,0.00010819,2]
[348257441,1736422256217,-500.0,0.00010819,2]
[348257442,1736422256226,-500.0,0.00010819,2]
[348257443,1736422256235,-500.0,0.00010819,2]
[348257444,1736422256246,-298.4,0.00010819,2]
[348257445,1736422256256,-500.0,0.00010819,2]
[348257446,1736422256265,-500.0,0.00010819,2]
[348257447,1736422256275,-500.0,0.00010819,2]
[348257448,1736422256285,-500.0,0.00010819,2]
[348257449,1736422256294,-500.0,0.00010819,2]
[348257450,1736422256303,-500.0,0.00010819,2]
[348257451,1736422256312,-500.0,0.00010819,2]
[348257452,1736422256322,-500.0,0.00010819,2]
[348257453,1736422256331,-202.55544806,0.00010819,2]
[348257454,1736422256340,-500.0,0.00010819,2]
[348257455,1736422256350,-500.0,0.00010819,2]
[348257456,1736422256359,-514.30030868,0.00010819,2]
[348257457,1736422256368,-500.0,0.00010819,2]
[348257458,1736422256376,-500.0,0.00010819,2]
[348257459,1736422256386,-500.0,0.00010819,2]
[348257460,1736422256396,-500.0,0.00010819,2]
[348257461,1736422256405,-500.0,0.00010819,2]
[348257462,1736422256414,-500.0,0.00010819,2]
[348257463,1736422256424,-500.0,0.00010819,2]
[348257464,1736422256433,-500.0,0.00010819,2]
[348257465,1736422256443,-500.0,0.00010819,2]
[348257466,1736422256452,-500.0,0.00010819,2]
[348257467,1736422256462,-500.0,0.00010819,2]
[348257468,1736422256471,-500.0,0.00010819,2]
[348257469,1736422256481,-500.0,0.00010819,2]
[348257470,1736422256490,-500.0,0.00010819,2]
[348257471,1736422256500,-500.0,0.00010819,2]
[348257472,1736422256509,-500.0,0.00010819,2]
[348257473,1736422256518,-500.0,0.00010819,2]
[348257474,1736422256528,-500.0,0.00010819,2]
[348257475,1736422256538,-500.0,0.00010819,2]
[348257476,1736422256547,-500.0,0.00010819,2]
[348257477,1736422256557,-500.0,0.00010819,2]
[348257478,1736422256566,-500.0,0.00010819,2]
[348257479,1736422256576,-500.0,0.00010819,2]
[348257480,1736422256589,-500.0,0.00010819,2]
[348257481,1736422256598,-502.06370973,0.00010819,2]
[348257482,1736422256608,-500.0,0.00010819,2]
[348257483,1736422256617,-500.0,0.00010819,2]
[348257484,1736422256627,-500.0,0.00010819,2]
[348257485,1736422256637,-500.0,0.00010819,2]
[348257486,1736422256646,-500.0,0.00010819,2]
[348257487,1736422256658,-500.0,0.00010819,2]
[348257488,1736422256668,-500.0,0.00010819,2]
[348257489,1736422256677,-500.0,0.00010819,2]
[348257490,1736422256687,-500.0,0.00010819,2]
[348257491,1736422256696,-500.0,0.00010819,2]
[348257492,1736422256706,-500.0,0.00010819,2]
[348257493,1736422256715,-500.0,0.00010819,2]
[348257494,1736422256726,-500.0,0.00010819,2]
[348257495,1736422256736,-500.0,0.00010819,2]
[348257496,1736422256745,-500.0,0.00010819,2]
[348257497,1736422256755,-500.0,0.00010819,2]
[348257498,1736422256765,-500.0,0.00010819,2]
[348257499,1736422256774,-500.0,0.00010819,2]
[348257500,1736422256783,-500.0,0.00010819,2]
[348257501,1736422256792,-500.0,0.00010819,2]
[348257502,1736422256802,-500.0,0.00010819,2]
[348257503,1736422256811,-500.0,0.00010819,2]
[348257504,1736422256820,-500.0,0.00010819,2]
[348257505,1736422256829,-500.0,0.00010819,2]
[348257506,1736422256838,-500.0,0.00010819,2]
[348257507,1736422256847,-500.0,0.00010819,2]
[348257508,1736422256856,-500.0,0.00010819,2]
[348257509,1736422256866,-500.0,0.00010819,2]
[348257510,1736422256876,-500.0,0.00010819,2]
[348257511,1736422256886,-500.0,0.00010819,2]
[348257512,1736422256895,-500.0,0.00010819,2]
[348257513,1736422256905,-500.0,0.00010819,2]
[348257514,1736422256915,-500.0,0.00010819,2]
[348257515,1736422256925,-500.0,0.00010819,2]
[348257516,1736422256934,-500.0,0.00010819,2]
[348257517,1736422256943,-500.0,0.00010819,2]
[348257518,1736422256953,-500.0,0.00010819,2]
[348257519,1736422256963,-500.49071223,0.00010819,2]
[348257520,1736422256973,-568.95344272,0.00010819,2]
[348257521,1736422256982,-500.0,0.00010819,2]
[348257522,1736422256991,-449.02,0.00010819,2]
[348257523,1736422257002,-500.0,0.00010819,2]
[348257524,1736422257012,-500.0,0.00010819,2]
[348257525,1736422257023,-500.0,0.00010819,2]
[348257526,1736422257032,-500.0,0.00010819,2]
[348257527,1736422257042,-500.0,0.00010819,2]
[348257528,1736422257052,-790.4,0.00010819,2]
[348257529,1736422257061,-500.0,0.00010819,2]
[348257530,1736422257071,-420.75,0.00010819,2]
[348257531,1736422257081,-500.0,0.00010819,2]
[348257532,1736422257091,-500.0,0.00010819,2]
[348257533,1736422257101,-970.74,0.00010819,2]
[348257534,1736422257110,-500.0,0.00010819,2]
[348257535,1736422257120,-636.81,0.00010819,2]
[348257536,1736422257130,-500.0,0.00010819,2]
[348257537,1736422257140,-500.0,0.00010819,2]
[348257538,1736422257149,-500.0,0.00010819,2]
[348257539,1736422257159,-1485.71,0.00010819,2]
[348257540,1736422257169,-181.65,0.00010819,2]
[348257541,1736422257179,-500.0,0.00010819,2]
[348257542,1736422257189,-542.44,0.00010819,2]
[348257543,1736422257199,-531.96,0.00010819,2]
[348257544,1736422257209,-500.0,0.0001082,2]
[348257545,1736422257219,-500.0,0.0001082,2]
[348257546,1736422257229,-500.0,0.0001082,2]
[348257547,1736422257239,-500.0,0.0001082,2]
[348257548,1736422257249,-836.81,0.0001082,2]
[348257549,1736422257259,-500.0,0.0001082,2]
[348257550,1736422257269,-655.07,0.0001082,2]
[348257551,1736422257278,-535.14,0.0001082,2]
[348257552,1736422257288,-500.0,0.0001082,2]
[348257553,1736422257298,-500.0,0.0001082,2]
[348257554,1736422257307,-500.0,0.0001082,2]
[348257555,1736422257317,-500.0,0.0001082,2]
[348257556,1736422257326,-552.3,0.0001082,2]
[348257557,1736422257335,-505.21,0.0001082,2]
[348257558,1736422257345,-633.35,0.0001082,2]
[348257559,1736422257354,-873.83,0.0001082,2]
[348257560,1736422257364,-3286.17,0.0001082,2]
[348257561,1736422257374,-500.0,0.0001082,2]
[348257562,1736422257383,-1187.0,0.0001082,2]
[348257563,1736422257393,-277.06759407,0.000109,2]
[348257564,1736422257403,-999.0,0.00010958,2]
[348257565,1736422257413,-150.0,0.00010959,2]
[348257566,1736422257422,-277.06759378,0.00010969,2]
[348257567,1736422257432,-500.0,0.00010986,2]
[348257568,1736422257442,-550.0,0.00011,2]
[348257569,1736422257452,-2340.0,0.00011,2]
[348257570,1736422257463,-1861.0,0.00011027,2]
[348257571,1736422257472,-1258.0,0.00011027,2]
[348257572,1736422257482,-915.0,0.00011027,2]
[348257573,1736422257491,-820.0,0.00011027,2]
[348257574,1736422257501,-3777.0,0.00011027,2]
[348257575,1736422257511,-537.0,0.00011027,2]
[348257576,1736422257521,-3977.0,0.00011027,2]
[348257577,1736422257530,-1103.0,0.00011027,2]
[348257578,1736422257540,-150.0,0.00011027,2]
[348257579,1736422257550,-1267.0,0.00011027,2]
[348257580,1736422257559,-636.0,0.00011027,2]
[348257581,1736422257569,-3895.0,0.00011027,2]
[348257582,1736422257581,-2015.0,0.00011027,2]
[348257583,1736422257591,-277.06759378,0.00011038,2]
[348257584,1736422257601,-150.0,0.00011047,2]
[348257585,1736422257611,-1000.0,0.00011078,2]
[348257586,1736422257621,-342.70547217,0.00011092,2]
[348257587,1736422257774,-500.0,0.00011092,2]
[348257588,1736422257789,-249.70109222,0.00011092,2]
[348257589,1736422257799,-258.2,0.00011092,2]
[348257590,1736422257809,-500.0,0.00011092,2]
[348257591,1736422257819,-500.0,0.00011092,2]
[348257592,1736422257830,-500.0,0.00011092,2]
[348257593,1736422257840,-500.0,0.00011092,2]
[348257594,1736422257850,-500.0,0.00011092,2]
[348257595,1736422257860,-500.0,0.00011092,2]
[348257596,1736422257870,-500.0,0.00011092,2]
[348257597,1736422257880,-500.0,0.00011092,2]
[348257598,1736422257890,-500.0,0.00011092,2]
[348257599,1736422257899,-500.0,0.00011092,2]
[348257600,1736422257910,-586.74,0.00011092,2]
[348257601,1736422257919,-500.0,0.00011092,2]
[348257602,1736422257929,-500.0,0.00011092,2]
[348257603,1736422257938,-500.0,0.00011092,2]
[348257604,1736422257948,-500.0,0.00011092,2]
[348257605,1736422257958,-500.0,0.00011092,2]
[348257606,1736422257968,-500.0,0.00011092,2]
[348257607,1736422257977,-500.0,0.00011092,2]
[348257608,1736422257987,-500.0,0.00011092,2]
[348257609,1736422257997,-500.0,0.00011092,2]
[348257610,1736422258006,-500.0,0.00011092,2]
[348257611,1736422258017,-537.07,0.00011092,2]
[348257612,1736422258027,-986.41,0.00011092,2]
[348257613,1736422258037,-500.0,0.00011092,2]
[348257614,1736422258047,-500.0,0.00011092,2]
[348257615,1736422258057,-709.68,0.00011092,2]
[348257616,1736422258067,-751.58,0.00011092,2]
[348257617,1736422258077,-892.24,0.00011092,2]
[348257618,1736422258087,-500.0,0.00011092,2]
[348257619,1736422258096,-500.0,0.00011092,2]
[348257620,1736422258106,-1592.04,0.00011092,2]
[348257621,1736422258116,-1610.5,0.00011092,2]
[348257622,1736422258126,-500.0,0.00011092,2]
[348257623,1736422258136,-500.0,0.00011092,2]
[348257624,1736422258146,-617.618837,0.00011092,2]
[348257625,1736422258155,-649.73,0.00011092,2]
[348257626,1736422258165,-712.58,0.00011092,2]
[348257627,1736422258175,-607.33,0.00011092,2]
[348257628,1736422258184,-514.0,0.00011092,2]
[348257629,1736422258194,-500.0,0.00011092,2]
[348257630,1736422258203,-1325.68,0.00011092,2]
[348257631,1736422258213,-629.280853,0.00011092,2]
[348257632,1736422258223,-500.0,0.00011092,2]
[348257633,1736422258233,-500.0,0.00011092,2]
[348257634,1736422258242,-500.0,0.00011092,2]
[348257635,1736422258253,-500.0,0.00011092,2]
[348257636,1736422258263,-1436.3,0.00011092,2]
[348257637,1736422258273,-898.53,0.00011092,2]
[348257638,1736422258283,-500.0,0.00011092,2]
[348257639,1736422258293,-500.0,0.00011092,2]
[348257640,1736422258302,-810.39,0.00011092,2]
[348257641,1736422258311,-344.47,0.00011092,2]
[348257642,1736422258321,-500.0,0.00011092,2]
[348257643,1736422258331,-500.0,0.00011092,2]
[348257644,1736422258341,-500.0,0.00011092,2]
[348257645,1736422258351,-739.26,0.00011092,2]
[348257646,1736422258361,-526.26,0.00011092,2]
[348257647,1736422258371,-719.73,0.00011092,2]
[348257648,1736422258381,-1350.5,0.00011092,2]
[348257649,1736422258391,-500.0,0.00011092,2]
[348257650,1736422258401,-500.0,0.00011092,2]
[348257651,1736422258411,-500.0,0.00011092,2]
[348257652,1736422258420,-500.0,0.00011092,2]
[348257653,1736422258430,-1657.26,0.00011092,2]
[348257654,1736422258441,-1048.08,0.00011092,2]
[348257655,1736422258451,-566.65,0.00011092,2]
[348257656,1736422258461,-500.0,0.00011092,2]
[348257657,1736422258471,-500.0,0.00011092,2]
[348257658,1736422258482,-1007.65,0.00011092,2]
[348257659,1736422258492,-3338.64,0.00011092,2]
[348257660,1736422258502,-500.0,0.00011093,2]
[348257661,1736422258512,-625.69,0.00011093,2]
[348257662,1736422258522,-500.0,0.00011093,2]
[348257663,1736422258531,-500.0,0.00011093,2]
[348257664,1736422258541,-500.0,0.00011093,2]
[348257665,1736422258551,-500.0,0.00011093,2]
[348257666,1736422258560,-299.49837461,0.00011093,2]
[348257667,1736422258570,-500.0,0.00011093,2]
[348257668,1736422258582,-500.0,0.00011093,2]
[348257669,1736422258591,-500.0,0.00011093,2]
[348257670,1736422258601,-500.0,0.00011093,2]
[348257671,1736422258611,-398.23740876,0.00011093,2]
[348257672,1736422258621,-500.0,0.00011093,2]
[348257673,1736422258632,-500.0,0.00011093,2]
[348257674,1736422258641,-500.0,0.00011093,2]
[348257675,1736422258651,-500.0,0.00011093,2]
[348257676,1736422258662,-501.31701378,0.00011093,2]
[348257677,1736422258672,-500.0,0.00011093,2]
[348257678,1736422258681,-500.0,0.00011093,2]
[348257679,1736422258691,-500.0,0.00011093,2]
[348257680,1736422258701,-500.0,0.00011093,2]
[348257681,1736422258711,-500.0,0.00011093,2]
[348257682,1736422258720,-500.0,0.00011093,2]
[348257683,1736422258730,-500.0,0.00011093,2]
[348257684,1736422258739,-500.0,0.00011093,2]
[348257685,1736422258749,-500.0,0.00011093,2]
[348257686,1736422258759,-500.0,0.00011093,2]
[348257687,1736422258769,-500.0,0.00011093,2]
[348257688,1736422258779,-500.0,0.00011093,2]
[348257689,1736422258789,-500.0,0.00011093,2]
[348257690,1736422258799,-500.0,0.00011093,2]
[348257691,1736422258809,-500.0,0.00011093,2]
[348257692,1736422258818,-500.0,0.00011093,2]
[348257693,1736422258827,-500.0,0.00011093,2]
[348257694,1736422258836,-500.0,0.00011093,2]
[348257695,1736422258846,-500.0,0.00011093,2]
[348257696,1736422258856,-500.0,0.00011093,2]
[348257697,1736422258865,-500.0,0.00011093,2]
[348257698,1736422258875,-500.0,0.00011093,2]
[348257699,1736422258884,-500.0,0.00011093,2]
[348257700,1736422258893,-500.0,0.00011093,2]
[348257701,1736422258904,-500.0,0.00011093,2]
[348257702,1736422258913,-500.0,0.00011093,2]
[348257703,1736422258922,-500.0,0.00011093,2]
[348257704,1736422258934,-500.0,0.00011093,2]
[348257705,1736422258943,-824.77,0.00011093,2]
[348257706,1736422258953,-790.4,0.00011093,2]
[348257707,1736422258962,-500.0,0.00011093,2]
[348257708,1736422258972,-500.0,0.00011093,2]
[348257709,1736422258981,-970.74,0.00011093,2]
[348257710,1736422258991,-500.0,0.00011093,2]
[348257711,1736422259000,-636.81,0.00011093,2]
[348257712,1736422259010,-500.0,0.00011093,2]
[348257713,1736422259019,-500.0,0.00011093,2]
[348257714,1736422259029,-500.0,0.00011093,2]
[348257715,1736422259038,-1485.71,0.00011093,2]
[348257716,1736422259048,-500.0,0.00011093,2]
[348257717,1736422259059,-542.44,0.00011093,2]
[348257718,1736422259068,-500.0,0.00011094,2]
[348257719,1736422259078,-500.0,0.00011094,2]
[348257720,1736422259087,-500.0,0.00011094,2]
[348257721,1736422259096,-500.0,0.00011094,2]
[348257722,1736422259107,-836.81,0.00011094,2]
[348257723,1736422259117,-500.0,0.00011094,2]
[348257724,1736422259126,-655.07,0.00011094,2]
[348257725,1736422259137,-535.14,0.00011094,2]
[348257726,1736422259146,-500.0,0.00011094,2]
[348257727,1736422259155,-500.0,0.00011094,2]
[348257728,1736422259164,-500.0,0.00011094,2]
[348257729,1736422259174,-474.93,0.00011094,2]
[348257730,1736422259184,-552.3,0.00011094,2]
[348257731,1736422259194,-505.21,0.00011094,2]
[348257732,1736422259203,-633.35,0.00011094,2]
[348257733,1736422259213,-873.83,0.00011094,2]
[348257734,1736422259223,-3286.17,0.00011094,2]
[348257735,1736422259233,-500.0,0.00011094,2]
[348257736,1736422259243,-1187.0,0.00011094,2]
[348257737,1736422259254,-277.06759378,0.00011107,2]
[348257738,1736422259264,-277.06759378,0.00011176,2]